Cogmind - Beta 16.1 @@@ ROGUE MODE // 2026.03.02 @ 11:43:04 Player: SunShine214 Result: Destroyed by Y-54 Guardian with Flak Gun Performance ------------- Evolutions (3) 1500 Regions Visited (7) 1400 Robots Destroyed (81) 405 Value Destroyed (2122) 2122 Prototype IDs (2) 40 Alien Tech Used (0) 0 Bonus (-181) -181 TOTAL SCORE: 5286 Bonus ------- High Alert Combat Kills 86 Friendly Fire -267 Cogmind --------- Core Integrity 0/700 Matter 39/300 Energy 98/100 System Corruption 26% Temperature Cool (0) Movement Core (50) Location -7/Storage Parts ------- > --- POWER (1) -------- (None) > --- PROPULSION (3) --- (None) > --- UTILITY (7) ------ (None) > --- WEAPON (2) ------- (None) > --- INVENTORY (5) ---- Improved Utility Shielding Improved Utility Shielding Improved Field Recycling Unit (15) Improved Grenade Launcher Improved Grenade Launcher Peak State ------------ > --- POWER ------------ Micro Nuclear Core > --- PROPULSION ------- Armored Treads Advanced Treads Advanced Treads > --- UTILITY ---------- Large Storage Unit Improved Sensor Array Improved Signal Interpreter Microactuators Hardened Light Armor Plating Hardened Light Armor Plating Improved Medium Armor Plating > --- WEAPON ----------- EM Pulse Cannon Scythe > --- INVENTORY -------- Improved Flight Unit Improved Flight Unit Improved Flight Unit Large Storage Unit Improved Utility Shielding Improved Utility Shielding Improved Utility Shielding Improved Utility Shielding Hacking Suite EM Pulse Cannon Advanced Beam Cannon Minigun Improved Grenade Launcher Improved Grenade Launcher Improved Grenade Launcher [Rating: 42] Favorites ----------- Power Light Nuclear Core Engine Ion Engine Power Core Light Nuclear Core Propulsion Light Treads Treads Light Treads Leg Aluminum Leg Wheel Compact Wheel Flight Unit Cesium-ion Thruster Utility Large Storage Unit Device Sensor Array Storage Large Storage Unit Processor Improved Signal Interpreter Hackware Hacking Suite Protection Light Armor Plating Weapon Advanced Beam Cannon Energy Gun Medium Laser Energy Cannon Advanced Beam Cannon Ballistic Gun Light Assault Rifle Launcher Rocket Launcher Impact Weapon Maul Slashing Weapon Scythe Build | -11 -10 -9 -8 -7 -7 -7 -7 ------- Run | Yrd Mat Mat Mat Fac Was Fac Sto Slots Evolved 6 | . . 2 2 2 . . . Power . | . . . . . . . . Propulsion 1 | . . . 1 . . . . Utility 5 | . . 2 1 2 . . . Weapon . | . . . . . . . . Parts Attached 68 | 7 10 19 10 7 2 11 2 Power 6 | 1 . 3 . 1 . 1 . Engine 3 | 1 . 1 . . . 1 . Core 3 | . . 2 . 1 . . . Reactor . | . . . . . . . . Propulsion 17 | 2 3 5 4 . . 3 . Treads 10 | 2 . 4 4 . . . . Leg 1 | . 1 . . . . . . Wheel 2 | . 2 . . . . . . Hover . | . . . . . . . . Flight 4 | . . 1 . . . 3 . Utility 22 | 1 4 6 2 5 . 3 1 Device 7 | . 2 1 1 1 . 1 1 Storage 4 | 1 1 1 . . . 1 . Processor 2 | . 1 1 . . . . . Hackware 1 | . . . . . . 1 . Protection 8 | . . 3 1 4 . . . Artifact . | . . . . . . . . Weapon 23 | 3 3 5 4 1 2 4 1 Energy Gun 5 | 2 2 . . . . 1 . Energy Cannon 9 | . . 4 3 1 . 1 . Ballistic Gun 1 | 1 . . . . . . . Ballistic Cannon . | . . . . . . . . Launcher 4 | . . 1 . . 2 . 1 Special Weapon . | . . . . . . . . Impact Weapon 2 | . 1 . . . . 1 . Slashing Weapon 2 | . . . 1 . . 1 . Piercing Weapon . | . . . . . . . . Special Melee Weapon . | . . . . . . . . Unidentified Prototypes 2 | . . 2 . . . . . Corrupted Parts 1 | . . . . . . 1 . System Corruption 2 | . . . . . . 2 . Parts Lost 19 | . 7 2 . . 4 2 4 Power 2 | . 1 . . . 1 . . Propulsion 4 | . 2 . . . . . 2 Utility 6 | . 2 1 . . 2 . 1 Weapon 7 | . 2 1 . . 1 2 1 Highest Loss Streak 5 | . 5 1 . . 4 2 4 To Critical Strikes . | . . . . . . . . Average Backups 12 | 1 5 14 15 15 12 5 6 Power . | . 1 . . . . . . Propulsion 1 | . . 2 3 3 2 . . Utility 3 | . 1 2 4 6 5 3 3 Weapon 6 | . 3 9 7 5 4 1 2 Tool/Special . | . . . . . . . . Unused Backups 26 | . . 9 4 . 7 . 6 Power . | . . . . . . . . Propulsion 6 | . . 3 . . 3 . . Utility 6 | . . 2 . . 2 . 2 Weapon 13 | . . 4 4 . 2 . 3 Tool/Special 1 | . . . . . . . 1 Average Slot Usage (%) 82 | . 83 95 94 91 71 28 20 Engine 3 | . 8 4 . . . 1 . Core 4 | . . 5 9 7 5 . . Treads 17 | . 17 18 26 23 15 . . Leg 1 | . 4 1 . . . . . Wheel 1 | . 3 2 . . . . . Flight 1 | . . . . . . 9 11 Device 8 | . 5 9 9 10 13 7 2 Storage 9 | . 14 11 9 7 5 1 6 Processor 7 | . . 11 9 7 5 . . Protection 8 | . . 8 12 18 15 . . Energy Gun 2 | . 14 2 . . . . . Energy Cannon 11 | . . 17 17 8 1 4 . Ballistic Gun 1 | . 13 . . . . . . Slashing Weapon 1 | . . . . 5 1 . . Peak Build Rating 42 | 6 9 19 31 42 42 26 14 Average Rating 18 | 4 6 15 26 35 30 12 10 On Entrance 15 | . 6 9 19 31 42 4 9 Avg Prop Armor Cover (%) 11 | . 13 11 . . . 6 . Naked Turns 7 | . . . . . . . 7 Heaviest Build 58 | 13 33 37 42 54 58 19 11 Greatest Support 64 | 40 40 40 64 64 64 15 10 Greatest Overweight (x) 7 | . 7 2 . . 2 2 1 Average Overweight (x) . | . . . . . . . . Largest Inventory Capacity 15 | 8 15 15 15 15 15 8 8 Average Capacity 13 | 6 14 15 15 15 12 5 7 Most Carried 15 | 3 15 15 15 15 15 8 8 Average Carried 12 | 1 5 14 14 14 12 5 6 Final Capacity 15 | 8 15 15 15 15 5 8 5 Final Carried 15 | 3 15 15 15 15 5 7 5 Class Distribution -------------------- 68% | Mutant 28% | Scavenger-Mutant Dominant Class ---------------- Mutant | -10/Materials Scavenger-Mutant | -9/Materials Scavenger-Mutant | -8/Materials Mutant | -7/Factory Mutant | -7/Waste Mutant | -7/Factory Mutant | -7/Storage Resources | -11 -10 -9 -8 -7 -7 -7 -7 ----------- Run | Yrd Mat Mat Mat Fac Was Fac Sto Matter Collected 1252 | 273 70 466 88 40 149 148 18 Remotely . | . . . . . . . . Salvage Created 3630 | 91 505 1543 306 40 920 218 7 Parts 164 | 5 17 102 18 3 5 14 . Haulers Intercepted 4 | . . 3 1 . . . . Recyclers Shooed 3 | . 2 . . . . 1 . Parts Field Recycled 4 | . . . . . . 4 . Retrieved Matter 60 | . . . . . . 60 . Parts Self-Destructed . | . . . . . . . . Prevented . | . . . . . . . . Parts Restored . | . . . . . . . . Kills | -11 -10 -9 -8 -7 -7 -7 -7 ------- Run | Yrd Mat Mat Mat Fac Was Fac Sto Combat Hostiles Destroyed 51 | . 7 34 4 1 4 1 . Melee 2 | . . . . 1 . 1 . Guns 7 | . 5 2 . . . . . Cannons 21 | . . 17 4 . . . . AOE 20 | . 2 14 . . 4 . . Classes Destroyed 12 | 2 4 3 . 1 1 1 . Worker 4 | . 1 2 . . . . 1 Builder 2 | . . . . . . 2 . Tunneler 2 | 1 . 1 . . . . . Hauler 4 | . . 3 1 . . . . Recycler 8 | 1 3 2 . . . 2 . Operator 2 | . 1 1 . . . . . Watcher 7 | . 1 5 1 . . . . Swarmer 10 | . . 10 . . . . . Grunt 26 | . 7 17 1 . . 1 . Sentry 10 | . . 7 3 . . . . Programmer 1 | . . . . 1 . . . Compactor 4 | . . . . . 4 . . Thug 1 | . . . . . 1 . . Best Kill Streak 6 | 2 3 6 2 1 4 1 1 Combat Bots Only 5 | . 3 5 2 1 4 1 . Max Kills in Single Turn 3 | 1 2 3 1 1 1 1 1 Gunslinging . | . . . . . . . . Exploded 3 | . 1 3 . . 1 . . Melee 1 | . . . . 1 . 1 . Uniques/NPCs Destroyed . | . . . . . . . . Combat | -11 -10 -9 -8 -7 -7 -7 -7 -------- Run | Yrd Mat Mat Mat Fac Was Fac Sto Hostile Shots Fired 325 | . 53 88 21 6 4 45 108 Missed 117 | . 11 30 6 2 . 4 64 Hits 208 | . 42 58 15 4 4 41 44 Melee 4 | . . . . . 4 . . Projectile 204 | . 42 58 15 4 . 41 44 Critical Strikes 7 | . 2 . . 1 . 4 . Damage Taken 3204 | 18 785 801 224 60 293 708 315 Core 1012 | . 161 147 . 16 87 420 181 Absorbed by Shields . | . . . . . . . . Core Remaining (%) 74 | 100 35 63 100 . . . . Volleys Fired 145 | 3 40 64 14 . 13 10 1 Largest 2 | 2 2 2 2 . 2 1 1 Hottest 131 | 60 70 124 131 . 72 65 36 Shots Fired 273 | 6 80 122 28 . 26 10 1 Gun 110 | 6 80 22 . . . 2 . Cannon 121 | . . 85 28 . . 8 . Launcher 42 | . . 15 . . 26 . 1 Special . | . . . . . . . . Kinetic 43 | 3 40 . . . . . . Thermal 114 | . 35 63 14 . . 2 . Explosive 42 | . . 15 . . 26 . 1 Electromagnetic 74 | 3 5 44 14 . . 8 . Robot Hit Streak 31 | 5 10 12 12 . 27 31 1 Robot Miss Streak 10 | . 10 5 3 . . 2 . Penetration Max . | . . . . . . . . Secondary Targets 1 | . 1 . . . . . . Max Gunslinging Chain 1 | . 1 . . . . . . Shots Hit Robots 185 | 5 52 70 19 2 23 13 1 Core Hits 112 | 3 21 55 9 1 15 6 2 Critical Kills 1 | . . 1 . . . . . Critical Parts Destroyed . | . . . . . . . . Critical Strikes 5 | . 1 4 . . . . . Burn 3 | . 1 2 . . . . . Meltdown 1 | . . 1 . . . . . Corrupt 1 | . . 1 . . . . . Melee Attacks 22 | . 1 . 10 3 . 8 . Impact 2 | . 1 . 1 . . . . Slashing 20 | . . . 9 3 . 8 . Piercing . | . . . . . . . . Sneak Attacks 1 | . . . . . . 1 . Combat Hostiles . | . . . . . . . . Follow-up Attacks . | . . . . . . . . Damage Inflicted 6870 | 101 814 2348 483 63 2522 471 68 Guns 848 | 55 581 199 . . . 13 . Cannons 1846 | . . 1214 477 . . 155 . Explosions 3739 | 38 233 863 . . 2507 30 68 Melee 320 | . . . . 63 . 257 . Ramming 117 | 8 . 72 6 . 15 16 . Kinetic 219 | 15 204 . . . . . . Thermal 1274 | 38 359 670 164 . . 43 . Explosive 3565 | . 188 802 . . 2507 . 68 Electromagnetic 1375 | 40 63 804 313 . . 155 . Impact . | . . . . . . . . Slashing 320 | . . . . 63 . 257 . Piercing . | . . . . . . . . Highest Corruption 26 | . 2 1 . 2 23 26 26 Average Corruption 7 | . 2 1 . 1 12 24 26 Corruption Purged . | . . . . . . . . Corruption Blocked . | . . . . . . . . Effects 54 | . . 9 . 1 5 34 5 Message Errors 14 | . . . . 1 . 13 . Matter Fused 17 | . . 4 . . 3 10 . Heat Flow Errors 4 | . . . . . . 3 1 Energy Discharges 3 | . . 2 . . . 1 . Data Loss (minor) 7 | . . 2 . . . 4 1 Misfires 1 | . . . . . 1 . . Alerts 1 | . . 1 . . . . . Misdirections 7 | . . . . . 1 3 3 Overload Shots . | . . . . . . . . Overflow Damage 127 | 13 25 17 5 . . 67 . Projectiles 14 | . . 2 5 . . 7 . Explosions 53 | 13 25 15 . . . . . Melee 60 | . . . . . . 60 . Knockbacks . | . . . . . . . . Impact . | . . . . . . . . Kinetic . | . . . . . . . . Secondary . | . . . . . . . . Self-Inflicted Damage 369 | 18 121 116 . . 108 6 . Shots 11 | 1 2 4 . . 4 . . Rammed 24 | 2 1 8 2 . 3 8 . Targets Rammed 25 | 2 1 9 2 . 3 8 . Kicked . | . . . . . . . . Crushed 1 | . . 1 . . . . . Highest Temperature 381 | 32 38 381 357 . 168 275 184 Average Temperature 79 | 18 11 87 110 . 80 93 104 Received Heat Transfer 1158 | . 339 261 63 . . 405 90 Effects 2 | . . 2 . . . . . Energy Bleed 1 | . . 1 . . . . . Damage (minor) 1 | . . 1 . . . . . Siege Activations . | . . . . . . . . Martial Activations . | . . . . . . . . Shielding Activations . | . . . . . . . . Robots Disrupted . | . . . . . . . . Combat Hostiles . | . . . . . . . . Robots Corrupted . | . . . . . . . . Combat Hostiles . | . . . . . . . . Parts Fried 3 | . . 2 1 . . . . Impact Corruptions . | . . . . . . . . Robots Melted 1 | . . 1 . . . . . Combat Hostiles 1 | . . 1 . . . . . Parts Melted 4 | . 1 3 . . . . . Heat Transferred 3112 | 50 1099 1630 296 . . 37 . Parts Sabotaged . | . . . . . . . . Parts Stolen . | . . . . . . . . Parts Stripped . | . . . . . . . . Power Chain Reactions 5 | 1 1 2 . . . 1 . Alert | -11 -10 -9 -8 -7 -7 -7 -7 ------- Run | Yrd Mat Mat Mat Fac Was Fac Sto Maximum Alert Level 2 | . . 2 1 . . . . Low Security (%) 70 | 100 100 52 29 100 100 100 100 Level 1 12 | . . 7 70 . . . . Level 2 16 | . . 40 . . . . . Level 3 . | . . . . . . . . Level 4 . | . . . . . . . . Level 5 . | . . . . . . . . High Security . | . . . . . . . . Max Security . | . . . . . . . . Peak Influence 693 | 5 111 693 282 84 26 45 17 Initial 276 | . . 17 276 60 7 . 3 Average 162 | . 50 303 220 11 10 4 1 Influence Increases 2009 | 10 361 1245 177 55 39 95 27 Destroy 0b10 Robot/C 940 | . 140 680 80 20 . 20 . Destroy 0b10 Robot/NC 145 | 10 30 70 10 . . 20 5 Destroy Leader 292 | . 42 196 34 10 . 10 . Successful Hack 101 | . 13 20 17 24 . 27 . Disable Machine 210 | . 60 120 15 . . . 15 Destroy Structure 216 | . 31 129 6 1 39 3 7 Partial Spotted 15 | . . 15 . . . . . Lose Combat Pursuer 90 | . 45 15 15 . . 15 . Influence Decreases 2009 | 10 319 632 697 168 61 86 36 Entered New Map 500 | . . 25 379 75 15 . 6 Time Decay 1370 | 10 249 587 318 93 40 66 7 Lost Part 136 | . 70 20 . . 6 20 20 Lost Ally 3 | . . . . . . . 3 Squads Dispatched 14 | . 2 5 2 1 . 4 . Investigation 4 | . 1 3 . . . . . Extermination 3 | . . . . 1 . 2 . Reinforcement 5 | . 1 2 . . . 2 . Assault . | . . . . . . . . Garrison 2 | . . . 2 . . . . Intercept . | . . . . . . . . Searches Triggered . | . . . . . . . . Construction Impeded 2 | . . 1 . . . 1 . Haulers Reinforced . | . . . . . . . . Active Scanning Responses . | . . . . . . . . Cargo Convoy Interrupts . | . . . . . . . . Stealth | -11 -10 -9 -8 -7 -7 -7 -7 --------- Run | Yrd Mat Mat Mat Fac Was Fac Sto Distress Signals 7 | . 1 2 3 . . 1 . Communications Jammed . | . . . . . . . . Distress Signals . | . . . . . . . . Times Spotted 86 | . 14 42 11 1 5 9 4 Peak Tracking Total 5 | . 4 5 5 1 2 4 3 Tactical Retreats 6 | . 3 1 1 . . 1 . Traps | -11 -10 -9 -8 -7 -7 -7 -7 ------- Run | Yrd Mat Mat Mat Fac Was Fac Sto Traps Triggered 13 | . 2 3 . 3 . 5 . Indirectly . | . . . . . . . . Trap Hack Attempts . | . . . . . . . . Triggered . | . . . . . . . . Disarmed . | . . . . . . . . Reprogrammed . | . . . . . . . . Reused . | . . . . . . . . Traps Extracted . | . . . . . . . . Installed . | . . . . . . . . Triggered . | . . . . . . . . Machines | -11 -10 -9 -8 -7 -7 -7 -7 ---------- Run | Yrd Mat Mat Mat Fac Was Fac Sto Machines Disabled 14 | . 4 8 1 . . . 1 Max in Single Turn 3 | . 3 3 1 . . . 1 Garrison Access 1 | . . . 1 . . . . Machines Repaired . | . . . . . . . . Machines Dismantled . | . . . . . . . . Machines Sabotaged . | . . . . . . . . Overloaded Fab Kills . | . . . . . . . . Hacking | -11 -10 -9 -8 -7 -7 -7 -7 --------- Run | Yrd Mat Mat Mat Fac Was Fac Sto Machines Accessed 20 | . 5 6 5 1 . 2 1 Terminals 16 | . 5 5 3 . . 2 1 Fabricators . | . . . . . . . . Repair Stations . | . . . . . . . . Recycling Units . | . . . . . . . . Scanalyzers 3 | . . 1 1 1 . . . Garrison Access 1 | . . . 1 . . . . Total Hacks 38 | . 10 12 8 3 . 4 1 Successful 15 | . 3 4 4 2 . 1 1 Failed 22 | . 7 7 4 1 . 3 . Catastrophic 8 | . 1 4 1 . . 2 . Database Lockouts 1 | . . 1 . . . . . Manual 16 | . 3 8 5 . . . . Terminals 30 | . 10 10 5 . . 4 1 Fabricators . | . . . . . . . . Repair Stations . | . . . . . . . . Recycling Units . | . . . . . . . . Scanalyzers 7 | . . 2 2 3 . . . Garrison Access 1 | . . . 1 . . . . Terminal Hacks 9 | . 3 2 2 . . 1 1 Open Door 1 | . . . . . . . 1 Level Access Points 1 | . . . 1 . . . . Branch Access Points 3 | . . 1 1 . . 1 . Recall Reinforcements 1 | . 1 . . . . . . Hauler Manifests 1 | . 1 . . . . . . Registered Components 1 | . 1 . . . . . . Zone Layout 1 | . . 1 . . . . . Fabricator Hacks . | . . . . . . . . Repair Station Hacks . | . . . . . . . . Recycling Unit Hacks . | . . . . . . . . Scanalyzer 4 | . . 1 1 2 . . . Retrieve Study 4 | . . 1 1 2 . . . Garrison Access Hacks 1 | . . . 1 . . . . Seal Access 1 | . . . 1 . . . . Unauthorized Hacks 1 | . . 1 . . . . . Terminals 1 | . . 1 . . . . . Assimilate 1 | . . 1 . . . . . Fabricators . | . . . . . . . . Repair Stations . | . . . . . . . . Recycling Units . | . . . . . . . . Scanalyzers . | . . . . . . . . Garrison Access . | . . . . . . . . Data Cores Recovered . | . . . . . . . . Used . | . . . . . . . . Hacking Detections 16 | . 5 6 2 1 . 2 . Full Trace Events 3 | . 1 1 1 . . . . Feedback Events . | . . . . . . . . Feedback Blocked . | . . . . . . . . Robot Schematics Acquired . | . . . . . . . . Robots Built . | . . . . . . . . Authchips . | . . . . . . . . Time . | . . . . . . . . Total Robot Build Rating . | . . . . . . . . Part Schematics Acquired . | . . . . . . . . Parts Built . | . . . . . . . . Authchips . | . . . . . . . . Time . | . . . . . . . . Total Part Build Rating . | . . . . . . . . Part Studies Acquired 4 | . . 1 1 2 . . . Parts Repaired . | . . . . . . . . Time . | . . . . . . . . Parts Recycled . | . . . . . . . . Recycled Matter . | . . . . . . . . Retrieved Matter . | . . . . . . . . Retrieved Components . | . . . . . . . . Parts Scanalyzed . | . . . . . . . . Part Schematics Acquired . | . . . . . . . . Parts Damaged . | . . . . . . . . Bothacking | -11 -10 -9 -8 -7 -7 -7 -7 ------------ Run | Yrd Mat Mat Mat Fac Was Fac Sto Used RIF Installer . | . . . . . . . . Robots Hacked . | . . . . . . . . Non-combat . | . . . . . . . . Combat . | . . . . . . . . Robot Hacks Applied . | . . . . . . . . Relay Couplers Released . | . . . . . . . . Fabnet Peak Effective % . | . . . . . . . . Robots Rewired . | . . . . . . . . Allies Hacked . | . . . . . . . . Hacks Repelled . | . . . . . . . . Allies | -11 -10 -9 -8 -7 -7 -7 -7 -------- Run | Yrd Mat Mat Mat Fac Was Fac Sto Total Allies 1 | . . . . . 1 . . Largest Group 1 | . . . . . 1 . . Highest-Rated Group 31 | . . . . . 31 . . Highest-Rated Ally 31 | . . . . . 31 . . Total Orders 2 | . . . . . . . 2 EXPLORE 2 | . . . . . . . 2 Ally Attacks 7 | . . . . . 7 . . Total Damage 125 | . . . . . 125 . . Kills . | . . . . . . . . Allies Corrupted . | . . . . . . . . Allies Melted . | . . . . . . . . Intel | -11 -10 -9 -8 -7 -7 -7 -7 ------- Run | Yrd Mat Mat Mat Fac Was Fac Sto Active Infowar (turns) 3922 | . 35 1810 705 698 128 546 . Sensors 3887 | . . 1810 705 698 128 546 . Structural 35 | . 35 . . . . . . Robot Analysis Total . | . . . . . . . . Derelict Logs Recovered . | . . . . . . . . Drone Launches 2 | . . . . . . . 2 Drone Recoveries 1 | . . . . . . . 1 Exploration | -11 -10 -9 -8 -7 -7 -7 -7 ------------- Run | Yrd Mat Mat Mat Fac Was Fac Sto Turns Passed 5012 | 111 654 2023 705 698 128 627 66 Spaces Moved 2980 | 57 305 1129 354 444 88 527 76 Core 408 | 4 9 . . . 61 316 18 Treads 1963 | 53 171 914 354 444 27 . . Legs 12 | . 12 . . . . . . Wheels 328 | . 113 215 . . . . . Hover . | . . . . . . . . Flight 269 | . . . . . . 211 58 Fastest Speed 29 | 50 115 115 153 153 50 29 32 Average Speed 133 | 152 154 151 158 153 87 68 42 Slowest Speed 400 | 160 400 240 163 153 225 150 112 Overloaded Moves . | . . . . . . . . Propulsion Burnouts . | . . . . . . . . Robots Hopped 1 | . . . . . . 1 . Potential Cave-ins 5 | . . . 5 . . . . Cave-ins Triggered . | . . . . . . . . Exploration Rate (%) 34 | 5 66 73 24 14 66 13 17 Regions Visited 7 Branch Regions 1 Pre-discovered Areas . | . . . . . . . . Known Exits Taken 4 | . 1 1 1 . . 1 . Unknown Exits Taken 1 | 1 . . . . . . . Scrap Searched . | . . . . . . . . Spaces Dug 10 | . . . 9 1 . . . Terrain Destroyed 294 | 4 34 142 9 1 88 3 13 Melee 10 | . . . 9 1 . . . Projectile . | . . . . . . . . AOE 284 | 4 34 142 . . 88 3 13 Terrain Rammed . | . . . . . . . . Walls Destroyed . | . . . . . . . . Machines Disabled . | . . . . . . . . Actions | -11 -10 -9 -8 -7 -7 -7 -7 --------- Run | Yrd Mat Mat Mat Fac Was Fac Sto Total 3706 | 71 411 1321 459 461 110 765 108 Wait 363 | . 35 57 47 . 5 191 28 Move 2973 | 57 304 1128 353 444 87 524 76 Hop 1 | . . . . . . 1 . Pick Up 47 | 3 15 16 7 1 . 5 . Fast Attach 34 | 6 5 6 3 2 . 10 2 Attach 10 | . 3 3 . . . 4 . Detach 4 | . 1 . . . . 2 1 Swap 37 | 1 3 16 9 6 2 . . Drop 46 | . 3 22 14 5 . 2 . Fire 145 | 3 40 64 14 . 13 10 1 Melee 22 | . 1 . 10 3 . 8 . Ram 10 | . . 1 . . 1 8 . Kick . | . . . . . . . . Crush 14 | 1 1 8 2 . 2 . . Escape Stasis . | . . . . . . . . Rewire . | . . . . . . . . Trap . | . . . . . . . . Miscellaneous . | . . . . . . . . Route ------- -11/Scrapyard -10/Materials (discovered 3 exits: *Mat / [*Min] / [*Sub]) -9/Materials (discovered 5 exits: *Mat x3 / *Min x2) -8/Materials (discovered 3 exits: *Fac x3) -7/Factory -7/Waste -7/Factory (discovered 4 exits: *Sto x2 / Low x2) -7/Storage History --------- Turn | Location | Event 5 | -11/Scrapyard | Discovered new exit (range 16) 112 | -11/Scrapyard | Entered Materials 311 | -10/Materials | Discovered new exit (range 16) 319 | -10/Materials | Build established: Mutant 360 | -10/Materials | Discovered new exit (range 7) 524 | -10/Materials | Core integrity fell below 50% 554 | -10/Materials | Lost 5 parts (1p2n1u1w) 742 | -10/Materials | Discovered new exit (range 10) 765 | -10/Materials | Identified exit to Materials 766 | -10/Materials | Entered another Materials area 766 | -9/Materials | Evolved 2 slots: Utility x2 1031 | -9/Materials | Discovered new exit (range 3) 1033 | -9/Materials | Identified exit to Materials 1285 | -9/Materials | Central database locked down 1349 | -9/Materials | Discovered new exit (range 15) 1874 | -9/Materials | Discovered exit to Materials (range 15) 2056 | -9/Materials | Build established: Scavenger-Mutant 2083 | -9/Materials | Discovered exit to Materials (range 10) 2354 | -9/Materials | Identified exit to Mines 2789 | -9/Materials | Entered another Materials area 2789 | -8/Materials | Evolved 2 slots: Propulsion x1, Utility x1 2832 | -8/Materials | Garrison activated, responded to threat 3366 | -8/Materials | Identified exit to Factory 3494 | -8/Materials | Entered Factory 3494 | -7/Factory | Evolved 2 slots: Utility x2 3575 | -7/Factory | Build established: Mutant 4192 | -7/Factory | Sucked down chute 4192 | -7/Factory | Entered Waste 4193 | -7/Waste | Met a frightened Derelict 4205 | -7/Waste | Spotted C-40 Crusher 4207 | -7/Waste | EMP discharged 4207 | -7/Waste | System corruption reached 10% 4217 | -7/Waste | Destroyed C-40 Crusher 4217 | -7/Waste | Spotted C-40 Crusher 4223 | -7/Waste | Destroyed C-40 Crusher 4226 | -7/Waste | Spotted C-40 Crusher 4237 | -7/Waste | Spotted C-40 Crusher 4237 | -7/Waste | Destroyed C-40 Crusher 4242 | -7/Waste | Spotted C-40 Crusher 4255 | -7/Waste | Destroyed C-40 Crusher 4273 | -7/Waste | Crushed by Compactor (1 part destroyed, 2 dropped) 4276 | -7/Waste | Crushed by Compactor (1 part destroyed, 2 dropped) 4287 | -7/Waste | Crushed by Compactor (1 part destroyed, 2 dropped) 4290 | -7/Waste | Crushed by Compactor (1 part destroyed, 2 dropped) 4307 | -7/Waste | EMP discharged 4315 | -7/Waste | Discovered new exit (range 12) 4320 | -7/Waste | Entered Factory 4321 | -7/Factory | Lost 4 parts (1p2u1w) 4843 | -7/Factory | Identified exit to Storage 4843 | -7/Factory | Identified exit to Lower Caves 4925 | -7/Factory | Core integrity fell below 50% 4947 | -7/Factory | Entered Storage 5004 | -7/Storage | Core integrity fell below 20% 5013 | -7/Storage | Destroyed by Y-54 Guardian with Flak Gun Last Messages --------------- 04972_ Drone released from Drone Bay. 04979_ K-01 Serf collects debris. 04983_ K-01 Serf cleans the Door Terminal. 04983_ Drone retrieved by Drone Bay (repair cost: 7). 04986_ K-01 Serf cleans the Door Terminal. 04990_ Acquired 11 matter. 04996_ Cesium-ion Thruster destroyed. 04998_ K-01 Serf cleans the Transport Mainframe. 04999_ Cesium-ion Thruster destroyed. 05001_ System corrupted: Component data lost. 05001_ K-01 Serf cleans the Transport Mainframe. 05003_ Acquired Imp. Grenade Launcher. 05003_ U-05 Engineer builds a Door. 05004_ Transport Mainframe disabled. 05004_ K-01 Serf destroyed. 05004_ Sml. Storage Unit destroyed. 05006_ Imp. Grenade Launcher destroyed. 05007_ Acquired 7 matter. 05012_ U-05 Engineer lays Concrete. Map ----- +----------------------------------------------------+ | | | | | | | | | | | | | | | | | | | | | | | | | | | | | | | | | ???????????????????????????????????????????####??? | | ???????????????????????????????????????????#! !#?? | | ??????????????######???????????????????????#! !#?? | | ??????????????# """#???????????????????????#! #?? | | ??????????#####""R"#???????????????????????#! !#?? | | ??????????# "" "#####??????????????????### ##?? | | ??????????# ! #######????????????#T #?? | | ??????????## Y |] # ###############/##### | | ??????????# u # | | ??????????# # a Y/ @ | | ?????????????# """ # Y | | ?????????????# """" # ####+#########+###### | | ?????????????# """" #######? ???# # | | ?????????????# """" #?????" """?# """ # | | ?????????????###########???#"" """## """ # | | ???????????????????????????#"T """## """ #? | | ???????????????????????????#"" ## #? | | ???????????????????????????#"" ## #? | | ???????????????????????????### ## #? | | ?????????????????????????????# ## "Y" !#? | | ?????????????????????????????## ######## """ #? | | ??????????????????????????????##???????##########? | | ?????????????????????????????????????????????????? | | ?????????????????????????????????????????????????? | | ?????????????????????????????????????????????????? | | ?????????????????????????????????????????????????? | | ?????????????????????????????????????????????????? | | ?????????????????????????????????????????????????? | | ?????????????????????????????????????????????????? | | ?????????????????????????????????????????????????? | | ?????????????????????????????????????????????????? | | ?????????????????????????????????????????????????? | | ?????????????????????????????????????????????????? | | ?????????????????????????????????????????????????? | +----------------------------------------------------+ Best States ------------- Heat Dissipation 39 Energy Generation 15 Energy Capacity 250 Matter Stores 300 Matter Capacity 300 Sight Range 16 Robot Scan Range 15 Terrain Scan Density 10 Armor Coverage 525 Melee Speed Boost 20 Evasion (%) 64 Recoil Reduction 3 Offensive Hacking 10 Item Schematics ----------------- None Robot Schematics ------------------ None Fabricated ------------ Nothing Repaired ---------- Nothing Studied --------- Rocket Launcher | -9/Materials | Hacked EM Pulse Cannon | -8/Materials | Hacked Arm. Treads | -7/Factory | Hacked Scythe | -7/Factory | Hacked Alien Tech Used ----------------- None Achievements -------------- My Bad Challenges ------------ None Game ------ Seed InertialGhostHammer Manual? 0 Play Time 00:36:58 Cumulative 99.2 hours Start 2026.03.02 @ 09:02:39 End 2026.03.02 @ 11:43:04 Sessions 2 Manual Loads 0 Difficulty Rogue Special Mode None Game No. 152 Rogue 152 Adventurer 0 Explorer 0 Win Type - Total 1 Types 1/0/0/0/0/0/0/0/0/0 Lore% 45 Gallery% 50 Achievement% 36 Wizard Run 0 Options --------- Layout 1 ASCII 0 Keyboard 1 Movement Arrows Keybinds 0 Fullscreen 1 Font 24/Smallcaps Map View 50x35 Zoom Use 0% Tactical HUD 1 Map Filters NONE Filters NONE Steam 1 RUN: 5190d04e-c0c5-4fc6-b62b-b56ff9124bf9